Cogmind - Beta 14 @@@ ROGUE MODE // 2024.12.23 @ 16:16:40 Player: Valkyorl Result: Destroyed by Y-64 Sentinel with KE Penetrator Performance ------------- Evolutions (5) 2500 Regions Visited (7) 1400 Robots Destroyed (35) 175 Value Destroyed (1086) 1086 Prototype IDs (9) 180 Alien Tech Used (0) 0 Bonus (330) 330 TOTAL SCORE: 5671 Bonus ------- Follower Combat Kills 30 Registered with UFD 300 Cogmind --------- Core Integrity 0/1000 Matter 5/300 Energy 9/100 System Corruption 9% Temperature Cool (4) Movement Walking (190) Ox1 Location -5/Upper Caves Parts ------- > --- POWER (2) -------- Fusion Compressor > --- PROPULSION (6) --- Carbon-fiber Leg > --- UTILITY (6) ------ Advanced Targeting Computer A0-MCA's Component Scanner > --- WEAPON (3) ------- HERF Cannon > --- INVENTORY (5) ---- Target Analyzer Makeshift Light Armor Plating HERF Cannon DRS Beacon (Ready) Peak State ------------ > --- POWER ------------ Micro Nuclear Core Light Fission Core > --- PROPULSION ------- Armored Treads Armored Treads Armored Treads Medium Treads > --- UTILITY ---------- Scrap Suit Advanced Heat Sink High-capacity Storage Unit Improved Signal Interpreter A0-MCA's Component Scanner > --- WEAPON ----------- Heavy Laser Barrage Gun Barrage Gun > --- INVENTORY -------- Light Angular Momentum Engine VTOL Module VTOL Module Xenon Bombardment Thruster Improved Heat Sink Advanced Heat Sink Small Storage Unit Humpback Advanced Targeting Computer Makeshift Light Armor Plating Battle Rifle Heavy Rocket Launcher Power Sword DRS Beacon [Rating: 62] Favorites ----------- Power Micro Nuclear Core Engine Light Ion Engine Power Core Micro Nuclear Core Propulsion Armored Treads Treads Armored Treads Leg Carbon-fiber Leg Wheel Wheel Flight Unit Flight Unit Utility Signal Interpreter Device Advanced Heat Sink Storage High-capacity Storage Unit Processor Signal Interpreter Protection Makeshift Light Armor Plating Weapon Gauss Cannon Energy Gun Heavy Laser Energy Cannon HERF Cannon Ballistic Gun Barrage Gun Ballistic Cannon Gauss Cannon Launcher Grenade Launcher Special Weapon Mining Laser Slashing Weapon Power Sword Build | -11 -10 -10 -10 -7 -7 -5 -5 ------- Run | Yrd Mat Min Sub Rec Scr Fac Upp Slots Evolved 10 | . . . . . . 10 . Power 1 | . . . . . . 1 . Propulsion 4 | . . . . . . 4 . Utility 4 | . . . . . . 4 . Weapon 1 | . . . . . . 1 . Parts Attached 66 | 5 8 10 7 . 9 20 7 Power 5 | . . 1 . . 1 1 2 Engine 1 | . . 1 . . . . . Core 4 | . . . . . 1 1 2 Reactor . | . . . . . . . . Propulsion 22 | 2 5 1 2 . 3 8 1 Treads 5 | . . . . . 3 2 . Leg 1 | . . . . . . . 1 Wheel 2 | 2 . . . . . . . Hover . | . . . . . . . . Flight 14 | . 5 1 2 . . 6 . Utility 13 | 1 1 . . . 3 6 2 Device 4 | . . . . . . 3 1 Storage 4 | 1 . . . . 2 1 . Processor 4 | . 1 . . . 1 1 1 Hackware . | . . . . . . . . Protection 1 | . . . . . . 1 . Artifact . | . . . . . . . . Weapon 26 | 2 2 8 5 . 2 5 2 Energy Gun . | . . . . . . . . Energy Cannon 2 | . . . . . . . 2 Ballistic Gun 14 | 2 2 4 3 . 1 2 . Ballistic Cannon 1 | . . . . . 1 . . Launcher 7 | . . 3 2 . . 2 . Special Weapon 1 | . . 1 . . . . . Impact Weapon . | . . . . . . . . Slashing Weapon 1 | . . . . . . 1 . Piercing Weapon . | . . . . . . . . Special Melee Weapon . | . . . . . . . . Unidentified Prototypes . | . . . . . . . . Parts Lost 24 | . 2 2 4 . . 14 2 Power 3 | . . . . . . 2 1 Propulsion 11 | . 2 1 2 . . 6 . Utility 4 | . . . . . . 3 1 Weapon 6 | . . 1 2 . . 3 . Highest Loss Streak 10 | . 2 1 4 . . 10 1 To Critical Strikes . | . . . . . . . . Average Slot Usage (%) 81 | . 77 81 82 85 88 75 18 Core 10 | . . . . . 13 9 . Treads 21 | . . . . . 27 18 . Flight 3 | . 20 27 26 28 . 1 . Device 1 | . . . . . . 9 2 Storage 12 | . 14 14 14 14 14 4 . Processor 13 | . 8 14 14 14 14 10 10 Ballistic Gun 6 | . 28 17 23 28 3 12 . Ballistic Cannon 9 | . . . . . 13 1 . Peak Build Rating 62 | 5 6 6 7 7 33 62 34 Average Rating 24 | 3 5 5 5 6 22 56 21 On Entrance 9 | . 5 6 5 6 7 33 10 Naked Turns . | . . . . . . . . Heaviest Build 74 | 9 9 9 7 7 56 74 26 Greatest Support 88 | 20 20 8 8 8 40 88 15 Greatest Overweight (x) 3 | . 1 1 . . 1 1 3 Average Overweight (x) . | . . . . . . . . Largest Inventory Capacity 20 | 8 8 8 8 8 20 20 5 Average Capacity 15 | 6 8 8 8 8 17 18 5 Most Carried 20 | 6 8 8 8 6 20 19 5 Average Carried 13 | 4 6 7 6 5 15 13 3 Final Capacity 20 | 8 8 8 8 8 20 5 5 Final Carried 20 | 5 7 8 3 6 20 3 4 Class Distribution -------------------- 82% | Mutant 8% | Scavenger-Mutant 6% | Derelict-Gunner Dominant Class ---------------- Scavenger-Mutant | -10/Materials Scavenger-Mutant | -10/Mines Scavenger-Mutant | -10/Subcaves Scavenger-Mutant | -7/Recycling Mutant | -7/Scraptown Derelict-Gunner | -5/Factory Mutant | -5/Upper Caves Resources | -11 -10 -10 -10 -7 -7 -5 -5 ----------- Run | Yrd Mat Min Sub Rec Scr Fac Upp Matter Collected 1218 | 224 186 135 171 . 74 390 38 Remotely . | . . . . . . . . Salvage Created 905 | . 226 107 204 . . 368 . Parts 84 | . 27 15 20 . . 22 . Haulers Intercepted . | . . . . . . . . Recyclers Shooed 1 | . . . . . . 1 . Parts Field Recycled . | . . . . . . . . Retrieved Matter . | . . . . . . . . Parts Self-Destructed 12 | . . . 12 . . . . Prevented . | . . . . . . . . Kills | -11 -10 -10 -10 -7 -7 -5 -5 ------- Run | Yrd Mat Min Sub Rec Scr Fac Upp Combat Hostiles Destroyed 30 | . 8 8 7 . . 7 . Guns 16 | . 8 1 . . . 7 . AOE 14 | . . 7 7 . . . . Classes Destroyed 8 | . 5 1 1 . . 1 . Worker 2 | . . 1 . . . 1 . Builder 1 | . 1 . . . . . . Operator 1 | . 1 . . . . . . Watcher 1 | . 1 . . . . . . Swarmer 10 | . 5 5 . . . . . Grunt 9 | . 3 3 . . . 3 . Programmer 4 | . . . . . . 4 . Subdweller 7 | . . . 7 . . . . Best Kill Streak 7 | . 7 4 7 . . 3 . Combat Bots Only 7 | . 5 3 7 . . 3 . Max Kills in Single Turn 4 | . 1 4 3 . . 1 . Gunslinging . | . . . . . . . . Exploded 3 | . . 3 3 . . . . Melee . | . . . . . . . . Uniques/NPCs Destroyed . | . . . . . . . . Combat | -11 -10 -10 -10 -7 -7 -5 -5 -------- Run | Yrd Mat Min Sub Rec Scr Fac Upp Hostile Shots Fired 293 | . 43 25 24 . . 156 45 Missed 99 | . 10 12 7 . . 50 20 Damage Taken 3622 | . 290 167 356 . . 2389 420 Core 1228 | . 57 49 108 . . 833 181 Absorbed by Shields . | . . . . . . . . Regen/Repaired (Parts) 10 | . . . . . . 10 . Core Remaining (%) 57 | 100 . . . . 14 . . Volleys Fired 119 | . 35 16 19 . . 40 9 Largest 3 | . 2 2 2 . . 3 1 Hottest 104 | . 40 100 53 . . 104 88 Shots Fired 256 | . 70 28 38 . . 111 9 Gun 218 | . 70 21 31 . . 96 . Cannon 23 | . . . . . . 14 9 Launcher 12 | . . 4 7 . . 1 . Special 3 | . . 3 . . . . . Kinetic 232 | . 70 21 31 . . 110 . Thermal 3 | . . 3 . . . . . Explosive 12 | . . 4 7 . . 1 . Electromagnetic 9 | . . . . . . . 9 Robot Hit Streak 9 | . 6 5 9 . . 8 3 Robot Miss Streak 6 | . 5 6 1 . . 4 4 Penetration Max . | . . . . . . . . Secondary Targets 3 | . 3 . . . . . . Max Gunslinging Chain 1 | . 1 . . . . . . Shots Hit Robots 145 | . 38 12 30 . . 61 4 Core Hits 74 | . 19 11 20 . . 23 1 Critical Kills 1 | . 1 . . . . . . Critical Parts Destroyed 1 | . 1 . . . . . . Critical Strikes 2 | . 2 . . . . . . Destroy 2 | . 2 . . . . . . Melee Attacks . | . . . . . . . . Impact . | . . . . . . . . Slashing . | . . . . . . . . Piercing . | . . . . . . . . Sneak Attacks . | . . . . . . . . Combat Hostiles . | . . . . . . . . Follow-up Attacks . | . . . . . . . . Damage Inflicted 3613 | . 348 538 1352 . . 1250 125 Guns 1595 | . 348 85 193 . . 969 . Cannons 352 | . . . . . . 227 125 Explosions 1666 | . . 453 1159 . . 54 . Melee . | . . . . . . . . Ramming . | . . . . . . . . Kinetic 1822 | . 348 85 193 . . 1196 . Thermal . | . . . . . . . . Explosive 1666 | . . 453 1159 . . 54 . Electromagnetic 125 | . . . . . . . 125 Impact . | . . . . . . . . Slashing . | . . . . . . . . Piercing . | . . . . . . . . Highest Corruption 9 | . . . . . . 9 9 Average Corruption 8 | . . . . . . 7 9 Corruption Purged . | . . . . . . . . Corruption Blocked . | . . . . . . . . Effects 22 | . . . . . . 11 11 Message Errors 3 | . . . . . . 2 1 Matter Fused 7 | . . . . . . 2 5 Heat Flow Errors 3 | . . . . . . 1 2 Energy Discharges 2 | . . . . . . . 2 Parts Rejected 1 | . . . . . . 1 . Data Loss (minor) 1 | . . . . . . 1 . Data Loss (major) 1 | . . . . . . 1 . Alerts 1 | . . . . . . . 1 Weapon Failures 3 | . . . . . . 3 . Overload Shots . | . . . . . . . . Overflow Damage 98 | . . . . . . 98 . Projectiles 8 | . . . . . . 8 . Explosions 90 | . . . . . . 90 . Melee . | . . . . . . . . Knockbacks 5 | . . . . . . 5 . Impact . | . . . . . . . . Kinetic 5 | . . . . . . 5 . Secondary . | . . . . . . . . Self-Inflicted Damage 334 | . . 45 5 . . 284 . Shots 7 | . . 3 1 . . 3 . Rammed . | . . . . . . . . Targets Rammed . | . . . . . . . . Kicked . | . . . . . . . . Crushed . | . . . . . . . . Highest Temperature 294 | . 3 28 . . . 294 148 Average Temperature 53 | . 2 8 . . . 81 34 Received Heat Transfer 633 | . 78 42 90 . . 405 18 Effects 1 | . . . . . . 1 . Energy Bleed 1 | . . . . . . 1 . Siege Activations . | . . . . . . . . Robots Corrupted . | . . . . . . . . Combat Hostiles . | . . . . . . . . Parts Fried . | . . . . . . . . Impact Corruptions . | . . . . . . . . Robots Melted . | . . . . . . . . Combat Hostiles . | . . . . . . . . Parts Melted . | . . . . . . . . Heat Transferred . | . . . . . . . . Parts Sabotaged . | . . . . . . . . Parts Stolen . | . . . . . . . . Parts Stripped . | . . . . . . . . Power Chain Reactions . | . . . . . . . . Alert | -11 -10 -10 -10 -7 -7 -5 -5 ------- Run | Yrd Mat Min Sub Rec Scr Fac Upp Peak Influence 341 | . 308 341 . 64 . 111 . Initial 120 | . . 120 . 49 . . . Average 129 | . 174 290 . 51 . 57 . Maximum Alert Level 1 | . 1 1 . . . . . Low Security (%) 70 | 100 49 12 . 100 . 100 . Level 1 29 | . 50 87 . . . . . Level 2 . | . . . . . . . . Level 3 . | . . . . . . . . Level 4 . | . . . . . . . . Level 5 . | . . . . . . . . High Security . | . . . . . . . . Max Security . | . . . . . . . . Squads Dispatched 7 | . 5 . . . . 2 . Investigation 1 | . 1 . . . . . . Extermination 1 | . . . . . . 1 . Reinforcement 5 | . 4 . . . . 1 . Assault . | . . . . . . . . Garrison . | . . . . . . . . Intercept . | . . . . . . . . Searches Triggered . | . . . . . . . . Construction Impeded . | . . . . . . . . Haulers Reinforced . | . . . . . . . . Active Scanning Responses . | . . . . . . . . Cargo Convoy Interrupts . | . . . . . . . . Stealth | -11 -10 -10 -10 -7 -7 -5 -5 --------- Run | Yrd Mat Min Sub Rec Scr Fac Upp Distress Signals 2 | . 2 . . . . . . Communications Jammed . | . . . . . . . . Distress Signals . | . . . . . . . . Times Spotted 63 | . 17 9 12 1 . 15 9 Peak Tracking Total 8 | . 5 3 6 1 . 7 8 Tactical Retreats 8 | . 4 . . 1 . . 3 Traps | -11 -10 -10 -10 -7 -7 -5 -5 ------- Run | Yrd Mat Min Sub Rec Scr Fac Upp Traps Triggered 2 | . 1 . . . . 1 . Indirectly . | . . . . . . . . Trap Hack Attempts . | . . . . . . . . Triggered . | . . . . . . . . Disarmed . | . . . . . . . . Reprogrammed . | . . . . . . . . Reused . | . . . . . . . . Traps Extracted . | . . . . . . . . Installed . | . . . . . . . . Triggered 1 | . . . . . . . 1 Machines | -11 -10 -10 -10 -7 -7 -5 -5 ---------- Run | Yrd Mat Min Sub Rec Scr Fac Upp Machines Disabled 2 | . . . . . . 2 . Max in Single Turn 2 | . . . . . . 2 . Machines Repaired . | . . . . . . . . Machines Dismantled . | . . . . . . . . Machines Sabotaged . | . . . . . . . . Overloaded Fab Kills . | . . . . . . . . Hacking | -11 -10 -10 -10 -7 -7 -5 -5 --------- Run | Yrd Mat Min Sub Rec Scr Fac Upp Machines Accessed 13 | . 2 . . 5 4 1 1 Terminals 6 | . 2 . . 3 . 1 . Fabricators . | . . . . . . . . Repair Stations . | . . . . . . . . Recycling Units . | . . . . . . . . Scanalyzers . | . . . . . . . . Garrison Access . | . . . . . . . . Total Hacks 57 | . 4 . . 31 19 2 1 Successful 47 | . 1 . . 26 19 . 1 Failed 10 | . 3 . . 5 . 2 . Catastrophic 2 | . . . . 1 . 1 . Database Lockouts . | . . . . . . . . Manual 1 | . . . . 1 . . . Terminals 12 | . 4 . . 6 . 2 . Fabricators . | . . . . . . . . Repair Stations . | . . . . . . . . Recycling Units . | . . . . . . . . Scanalyzers . | . . . . . . . . Garrison Access . | . . . . . . . . Terminal Hacks 47 | . 1 . . 26 19 . 1 Record 38 | . . . . 25 13 . . Robot Analysis 5 | . . . . . 5 . . Open Door 1 | . . . . . . . 1 Maintenance Status 1 | . 1 . . . . . . Derelict Proto ID Bank 1 | . . . . . 1 . . Release Object 1 | . . . . 1 . . . Fabricator Hacks . | . . . . . . . . Repair Station Hacks . | . . . . . . . . Recycling Unit Hacks . | . . . . . . . . Scanalyzer . | . . . . . . . . Garrison Access Hacks . | . . . . . . . . Unauthorized Hacks . | . . . . . . . . Terminals . | . . . . . . . . Fabricators . | . . . . . . . . Repair Stations . | . . . . . . . . Recycling Units . | . . . . . . . . Scanalyzers . | . . . . . . . . Garrison Access . | . . . . . . . . Data Cores Recovered . | . . . . . . . . Used . | . . . . . . . . Hacking Detections 5 | . 1 . . 3 . 1 . Full Trace Events . | . . . . . . . . Feedback Events . | . . . . . . . . Feedback Blocked . | . . . . . . . . Robot Schematics Acquired . | . . . . . . . . Robots Built . | . . . . . . . . Authchips . | . . . . . . . . Time . | . . . . . . . . Total Robot Build Rating . | . . . . . . . . Part Schematics Acquired . | . . . . . . . . Parts Built . | . . . . . . . . Authchips . | . . . . . . . . Time . | . . . . . . . . Total Part Build Rating . | . . . . . . . . Parts Repaired . | . . . . . . . . Time . | . . . . . . . . Parts Recycled . | . . . . . . . . Recycled Matter . | . . . . . . . . Retrieved Matter . | . . . . . . . . Retrieved Components . | . . . . . . . . Parts Scanalyzed . | . . . . . . . . Part Schematics Acquired . | . . . . . . . . Parts Damaged . | . . . . . . . . Bothacking | -11 -10 -10 -10 -7 -7 -5 -5 ------------ Run | Yrd Mat Min Sub Rec Scr Fac Upp Used RIF Installer . | . . . . . . . . Robots Hacked . | . . . . . . . . Non-combat . | . . . . . . . . Combat . | . . . . . . . . Robot Hacks Applied . | . . . . . . . . Relay Couplers Released . | . . . . . . . . Fabnet Peak Effective % . | . . . . . . . . Robots Rewired . | . . . . . . . . Allies Hacked . | . . . . . . . . Hacks Repelled . | . . . . . . . . Allies | -11 -10 -10 -10 -7 -7 -5 -5 -------- Run | Yrd Mat Min Sub Rec Scr Fac Upp Total Allies 2 | . . 2 . . . . . Largest Group 2 | . . 2 2 . . . . Highest-Rated Group 62 | . . 62 62 . . . . Highest-Rated Ally 31 | . . 31 31 . . . . Total Orders . | . . . . . . . . Ally Attacks 15 | . . 6 9 . . . . Total Damage 169 | . . 43 126 . . . . Kills 1 | . . . 1 . . . . Allies Corrupted . | . . . . . . . . Allies Melted . | . . . . . . . . Intel | -11 -10 -10 -10 -7 -7 -5 -5 ------- Run | Yrd Mat Min Sub Rec Scr Fac Upp Robot Analysis Total 5 | . . . . . 5 . . Derelict Logs Recovered 5 | . . 3 1 . . . 1 Drone Launches . | . . . . . . . . Drone Recoveries . | . . . . . . . . Exploration | -11 -10 -10 -10 -7 -7 -5 -5 ------------- Run | Yrd Mat Min Sub Rec Scr Fac Upp Turns Passed 7022 | 51 230 388 121 113 4896 785 438 Spaces Moved 4786 | 50 254 812 168 297 2199 509 497 Core 534 | 11 . . . . . 37 486 Treads 2466 | . . . . . 2145 321 . Legs 11 | . . . . . . . 11 Wheels 81 | 39 42 . . . . . . Hover . | . . . . . . . . Flight 1694 | . 212 812 168 297 54 151 . Fastest Speed 29 | 50 37 37 37 37 37 29 50 Average Speed 136 | 73 44 39 37 37 220 123 81 Slowest Speed 250 | 80 120 117 37 37 250 167 200 Overloaded Moves . | . . . . . . . . Propulsion Burnouts . | . . . . . . . . Robots Hopped 12 | . 5 4 2 . . 1 . Cave-ins Triggered . | . . . . . . . . Exploration Rate (%) 50 | 3 53 97 10 71 94 10 68 Regions Visited 7 Branch Regions 5 Pre-discovered Areas 3 | . . 1 1 . . . 1 Known Exits Taken 5 | . 1 1 1 1 1 . . Unknown Exits Taken 2 | 1 . . . . . 1 . Scrap Searched 11 | . . 1 . . 9 . 1 Spaces Dug 36 | . . 1 . . . 35 . Terrain Destroyed 126 | . . 40 46 . . 40 . Melee . | . . . . . . . . Projectile 6 | . . 1 . . . 5 . AOE 120 | . . 39 46 . . 35 . Terrain Rammed . | . . . . . . . . Walls Destroyed . | . . . . . . . . Machines Disabled . | . . . . . . . . Actions | -11 -10 -10 -10 -7 -7 -5 -5 --------- Run | Yrd Mat Min Sub Rec Scr Fac Upp Total 5057 | 63 309 842 191 299 2245 589 519 Wait 1 | . . . . . . 1 . Move 4756 | 49 244 803 163 296 2198 506 497 Hop 11 | . 4 4 2 . . 1 . Pick Up 65 | 9 11 5 . 3 23 9 5 Fast Attach 5 | 1 . . . . 1 . 3 Attach 42 | 4 7 3 5 . 2 17 4 Detach 4 | . . 1 . . 2 1 . Swap 19 | . 1 7 2 . 6 3 . Drop 35 | . 7 3 . . 13 11 1 Fire 119 | . 35 16 19 . . 40 9 Melee . | . . . . . . . . Ram . | . . . . . . . . Kick . | . . . . . . . . Crush . | . . . . . . . . Escape Stasis . | . . . . . . . . Rewire . | . . . . . . . . Trap . | . . . . . . . . Miscellaneous . | . . . . . . . . Route ------- -11/Scrapyard -10/Materials (discovered 2 exits: *Mat / *Min) -10/Mines (discovered 3 exits: *Mat x2 / *Sub) -10/Subcaves (discovered 2 exits: *Mat / *Rec) -7/Recycling -7/Scraptown (discovered 2 exits: *Fac x2) -5/Factory -5/Upper Caves History --------- Turn | Location | Event 21 | -11/Scrapyard | Discovered new exit (range 15) 52 | -11/Scrapyard | Entered Materials 241 | -10/Materials | Discovered new exit (range 15) 249 | -10/Materials | Identified exit to Materials 280 | -10/Materials | Discovered new exit (range 6) 281 | -10/Materials | Identified exit to Mines 282 | -10/Materials | Entered Mines 289 | -10/Mines | Received a Rocket Launcher from a helpful Derelict 289 | -10/Mines | Identified exit to Subcaves 321 | -10/Mines | Discovered exit to Materials (range 12) 430 | -10/Mines | Received a Mining Laser from a helpful Derelict 451 | -10/Mines | Build established: Scavenger-Mutant 472 | -10/Mines | Escorted by a lone wolf Derelict 611 | -10/Mines | Learned location of Storage (-7) 670 | -10/Mines | Entered Subcaves 670 | -10/Subcaves | Accompanied by 2 allies 672 | -10/Subcaves | Learned location of Zion (-7) 719 | -10/Subcaves | Discovered new exit (range 4) 720 | -10/Subcaves | Identified exit to Materials 736 | -10/Subcaves | Ambushed by swarm of Subdwellers 743 | -10/Subcaves | Core integrity fell below 50% 747 | -10/Subcaves | Ambushed by Subdwellers from Twisted Machinery 747 | -10/Subcaves | Ambushed by Subdwellers from Twisted Machinery 775 | -10/Subcaves | Core integrity fell below 20% 786 | -10/Subcaves | Destroyed 7 combat bots 786 | -10/Subcaves | Discovered new exit (range 15) 791 | -10/Subcaves | Identified exit to Recycling 791 | -10/Subcaves | Entered Recycling 792 | -7/Recycling | Met a Zionite searching for Scraptown 803 | -7/Recycling | Lost 4 parts (2n2w) 889 | -7/Recycling | Scanned before Scraplab entrance 894 | -7/Recycling | Entered Scraplab 898 | -7/Recycling | Discovered new exit (range 3) 898 | -7/Recycling | Identified exit to Scraptown 904 | -7/Recycling | Entered Scraptown 1200 | -7/Scraptown | Build established: Mutant 1217 | -7/Scraptown | Visited UFD Registry 1242 | -7/Scraptown | Visited Comm Corps 1331 | -7/Scraptown | Visited Observation Area 1979 | -7/Scraptown | Visited Bundlers 2219 | -7/Scraptown | Visited Junk Repository 2487 | -7/Scraptown | Heard Great Nut preacher, LISTEN AND RECITE! 2600 | -7/Scraptown | Discovered new exit (range 5) 2620 | -7/Scraptown | Identified exit to Factory 2890 | -7/Scraptown | Visited SPCMW 3062 | -7/Scraptown | Visited CPS Storage 3407 | -7/Scraptown | Registered with UFD as "Fissionbucket" 3490 | -7/Scraptown | Visited Cartography Club 3580 | -7/Scraptown | Visited Science Guys 3777 | -7/Scraptown | Visited Analyses Database 3837 | -7/Scraptown | Visited Abandonware Association 3867 | -7/Scraptown | Learned abandonware demo "OVRCLOCK.EXE" 3882 | -7/Scraptown | Learned abandonware demo "REVENGE.EXE" 3882 | -7/Scraptown | Learned abandonware demo "POISON.EXE" 3937 | -7/Scraptown | Visited Curators Association 4448 | -7/Scraptown | Visited Scrapoid Pod Storage 4493 | -7/Scraptown | Visited Research Penetration Think Tank 4571 | -7/Scraptown | Visited Derelict Rescue Squad 4587 | -7/Scraptown | Found DRS Beacon 4620 | -7/Scraptown | Visited A0-MCA Data Center 4635 | -7/Scraptown | Given a B- rating by A0-MCA 4641 | -7/Scraptown | Found A0-MCA's Component Scanner 4849 | -7/Scraptown | Found Scrap Suit 4902 | -7/Scraptown | Discovered exit to Factory (range 5) 5800 | -7/Scraptown | Entered Factory 5800 | -5/Factory | Evolved 10 slots: Power x1, Propulsion x4, Utility x4, Weapon x1 6328 | -5/Factory | Build established: Derelict-Gunner 6566 | -5/Factory | Core integrity fell below 50% 6574 | -5/Factory | Core integrity fell below 20% 6579 | -5/Factory | Discovered new exit (range 13) 6585 | -5/Factory | Entered Upper Caves 6598 | -5/Upper Caves | Lost 10 parts (1p4n3u2w) 6762 | -5/Upper Caves | Build established: Mutant 6943 | -5/Upper Caves | Attracted the attention of an 0b10 base 6947 | -5/Upper Caves | Attracted the attention of an 0b10 checkpoint 7023 | -5/Upper Caves | Destroyed by Y-64 Sentinel with KE Penetrator Last Messages --------------- System corrupted: Heat flow error (+176). Dropped HERF Cannon. Slug penetrates Wall. Y-64 Sentinel: "INTERCEPTING UNREGISTERED DERELICT." System corrupted: Energy discharge (-21). Acquired derelict log, extracted data. World map updated: -5/Factory. System corrupted: Matter fused (-7). Acquired Carbon-fiber Leg. Acquired Fission Core. Adv. Heat Sink destroyed. Acquired Mak. Light Armor Plating. S-27 Virus misfires. System corrupted: Matter fused (-7). Slug penetrates Machine. Penetrated by Slug. Fission Core destroyed. S-27 Virus misfires. Penetrated by Slug. Map ----- +----------------------------------------------------+ | | | ?????????????????????????????????????????????????? | | ?????????????????????????????????????????????????? | | ?????????????????????????????????????????????????? | | ?????????????????????????????????????????????????? | | ?????????????????????????????????????????????????? | | ?????????????????????????????????????????????????? | | ?????????????????????????????????????????????????? | | ?????????????????????????????????????????????????? | | ?????????????????????????????????????????????????? | | ?????????????????????????????????????????????????? | | ?????????????????????????????????????????????????? | | ???????????????######################????????????? | | ???????????????# #????????????? | | ???????????????# # #????????????? | | ???????????????# #### #????????????? | | ???????####????# # ## ###??????????? | | #???#### ###??# ### ### #??????????? | | ###?# #??# ?#### ## "## #??????#???? | | #?? #??# ??# Y#" "## ""# ##????? ??? | | #??? #??# ??# s "# #????? ? | | #???# #???# ### "# #???? # | | ##??# #???# ## !"# ##?? #? | | #### #????# ## ""# ## #?? | | ## ##???# ##X "## #?????? | | ##### ## @ "## ##?????? | | # # # ##! "# #??????? | | # ## ## #??????? | | ###### ### "" "### #??????? | | # ####????### ### ##""##### #??????? | | # ##?????????# ########?## ##??????? | | ?????????# ###### # ##???????? | | # ???????# #####????????? | | ## ?????######## ###### #####????????????? | | ?# ###??????????# #????# #????????????????? | | ?# #???????????# ??? #????????????????? | | ? ##?????????? ###?####????????????????? | | ? ##?????????? # #???????????????????????? | | ? ##??????????# # #???????????????????????? | | #????????????# # #???????????????????????? | | #????????#?#### ? # #???????????????????????? | | ## #??????## ? #?##? ? ???????????????????????? | | ## #??????# #???? ? ???????????????????????? | | # #????## # #???# ?# ???????????????????????? | | ##???# # #????# ??? ???????????????????????? | | ##??# #?????? ??? ??????????????????????? | | # #?## ##?????? ???#???????????????????????? | | # #### ###????????????????????????????????? | | # ## ##???????????????????????????????? | | ## ### ## ##??????????????????????????????? | +----------------------------------------------------+ Best States ------------- Heat Dissipation 59 Energy Generation 28 Energy Capacity 310 Matter Stores 300 Matter Capacity 300 Sight Range 16 Terrain Scan Density 10 Armor Coverage 100 Evasion (%) 64 Targeting Accuracy 8 Recoil Reduction 4 Item Schematics ----------------- None Robot Schematics ------------------ None Fabricated ------------ Nothing Alien Tech Used ----------------- None Achievements -------------- Armchair Analyst Challenges ------------ None Game ------ Seed HeatCatalystSaw Manual? 0 Play Time 01:20:08 Cumulative 9.0 hours Start 2024.12.23 @ 14:52:43 End 2024.12.23 @ 16:16:40 Sessions 1 Manual Loads 0 Difficulty Rogue Special Mode None Game No. 9 Rogue 9 Adventurer 0 Explorer 0 Win Type - Total 0 Types 0/0/0/0/0/0/0/0/0 Lore% 17 Gallery% 11 Achievement% 14 Wizard Run 0 Options --------- Layout 1 ASCII 0 Keyboard 0 Movement Mouse Keybinds 0 Fullscreen 2 Font 32/SmallcapsGlow Map View 50x35 Zoom Use 0% Tactical HUD 0 Map Filters NONE Filters NONE Steam 1 RUN: 14b3eea2-0c3c-4747-a4f8-517e059ab7b9